[Event "Austrian Bundesliga 2023-24"]
[Site "Austria"]
[Date "2024.03.20"]
[Round "7.8"]
[White "Koelle, Tobias"]
[Black "Bluebaum, Matthias"]
[Result "1/2-1/2"]
[ECO "D43"]
[WhiteElo "2460"]
[BlackElo "2655"]
[Annotator "TA"]
[PlyCount "70"]
[EventDate "2023.10.21"]
[EventType "team-tourn"]
[EventCountry "AUT"]
[SourceTitle "playchess.com"]
[Source "ChessBase"]
[SourceQuality "1"]
[TimeControl "40/5400+30:1800+30"]

{[%evp 13,70,20,10,8,26,15,28,16,28,26,27,0,0,0,0,0,0,0,0,0,0,-34,-24,-15,0,0,0,0,0,0,0,0,0,0,0,0,0,0,0,0,0,0,0,0,0,0,0,0,0,0,0,0,0,0,0,0,0,0,0]} 1. d4 {[%emt 0:00:06]} Nf6 {[%emt 0:00:09]} 2. c4 {[%emt 0:00:05]} e6 {[%emt 0:00:04]} 3. Nf3 {[%emt 0:00:06]} d5 {[%emt 0:00:05]} 4. Nc3 {[%emt 0:00:06]} c6 {[%emt 0:00:18]} 5. Bg5 {[%emt 0:00:10]} h6 {[%emt 0:00:07]} 6. Bxf6 {[%emt 0:00:05]} Qxf6 {[%emt 0:00:04]} 7. e3 {[%emt 0:00:06]} g6 {[%emt 0:00:36]} 8. Be2 {[%emt 0:03:54]} Bg7 {[%emt 0:00:29]} 9. O-O {[%emt 0:00:07]} O-O {[%emt 0:00:16]} 10. Ne5 {[%emt 0:01:15] White has an edge.} Qe7 {[%emt 0:00:44]} 11. f4 {[%emt 0:03:20]} dxc4 {[%emt 0:00:29]} 12. Bxc4 {[%emt 0:07:30]} c5 {[%emt 0:07:02]} 13. Qe2 {[%emt 0:09:17]} cxd4 {[%emt 0:08:22]} 14. exd4 {[%emt 0:00:07]} Nc6 {[%emt 0:00:16]} 15. Rad1 {[%emt 0:04:55]} Bd7 {[%emt 0:06:01]} 16. Kh1 {[%emt 0:15:50]} Rad8 {[%emt 0:16:52]} 17. Nxd7 {[%emt 0:08:08]} Rxd7 {[%emt 0:05:00]} (17... Nxd4 $2 {perishes.} 18. Rxd4 Bxd4 19. Nxf8 Kxf8 20. Rd1 $18) 18. d5 {[%emt 0:01:03]} exd5 {[%emt 0:06:34] The position is equal.} 19. Qxe7 $1 {[%emt 0:01:08]} Nxe7 {[%emt 0:08:25]} 20. Nxd5 {[%emt 0:00:10]} Nxd5 {[%emt 0:00:22]} (20... Bxb2 $2 {too greedy.} 21. Nf6+ Bxf6 22. Rxd7 $18) 21. Rxd5 {[%emt 0:00:11]} Rfd8 {[%emt 0:01:22]} 22. Rfd1 {[%emt 0:01:30]} Rxd5 {[%emt 0:00:07]} 23. Rxd5 {[%emt 0:01:48]} Rxd5 {[%emt 0:03:37]} 24. Bxd5 {[%emt 0:00:16]} Bxb2 {[%emt 0:00:04]} 25. Bxb7 $11 {[%emt 0:00:05][%mdl 4096] Endgame. KB-KB} f5 {[%emt 0:00:06]} 26. g3 {[%emt 0:00:04]} Kf7 {[%emt 0:00:06]} 27. Kg2 {[%emt 0:00:04]} Kf6 {[%emt 0:00:06]} 28. h4 {[%emt 0:00:06]} h5 {[%emt 0:00:07]} 29. Kf3 {[%emt 0:00:06]} a5 {[%emt 0:00:03]} 30. a4 {[%emt 0:00:03]} Bd4 {[%emt 0:00:03]} 31. Bd5 {[%emt 0:00:05]} Bb2 {[%emt 0:00:04]} 32. Bb7 {[%emt 0:00:04]} Bd4 {[%emt 0:00:03]} 33. Bd5 $1 {[%emt 0:00:03]} Bb2 {[%emt 0:00:03]} 34. Bb7 {[%emt 0:00:05]} Bd4 {[%emt 0:00:02]} 35. Bd5 {[%emt 0:00:10]} Bb2 {[%emt 0:00:04] An interesting draw.   Weighted Error Value: White=0.05 (flawless) /Black=0.03 (flawless) .  Inaccurate:     	White=2     	---        OK:         	White=11    	Black=8      Strong:       	White=2     	---} 1/2-1/2

[Event "Austrian Bundesliga 2023-24"]
[Site "Austria"]
[Date "2024.03.20"]
[Round "7.9"]
[White "Svane, Rasmus"]
[Black "Deuer, Marius"]
[Result "1-0"]
[ECO "B13"]
[WhiteElo "2623"]
[BlackElo "2430"]
[Annotator "TA"]
[PlyCount "87"]
[EventDate "2023.10.21"]
[EventType "team-tourn"]
[EventCountry "AUT"]
[SourceTitle "playchess.com"]
[Source "ChessBase"]
[SourceQuality "1"]
[TimeControl "40/5400+30:1800+30"]

{[%evp 9,87,4,16,18,16,7,5,18,4,23,27,17,37,0,0,0,0,0,0,0,0,0,6,0,0,0,163,43,61,77,67,61,64,44,94,90,85,69,74,71,51,45,93,59,52,49,62,68,45,30,36,0,9,0,0,0,22,22,100,101,98,0,1068,1068,1068,1068,1054,1054,1061,1061,1061,1061,1056,1053,1048,1046,1027,943,1908,1553]} 1. e4 {[%emt 0:00:04]} c6 {[%emt 0:00:13]} 2. d4 {[%emt 0:00:23]} d5 {[%emt 0:00:09]} 3. exd5 {[%emt 0:00:17]} cxd5 {[%emt 0:00:08]} 4. Bd3 {[%emt 0:00:08]} Nf6 {[%emt 0:04:31]} 5. h3 {[%emt 0:00:11]} g6 {[%emt 0:00:35]} 6. Nf3 {[%emt 0:02:27]} Bf5 {[%emt 0:01:20]} 7. O-O {[%emt 0:00:11]} Nc6 {[%emt 0:03:09]} 8. Bxf5 {[%emt 0:03:32] Die Stellung ist ausgeglichen.} gxf5 {[%emt 0:00:07] [#]} 9. c4 $1 {[%emt 0:00:06]} dxc4 {[%emt 0:10:22]} (9... Bg7 10. Nc3) 10. Nc3 {[%emt 0:00:06] Zielt auf d5 ab.} Nd5 {[%emt 0:06:49]} 11. Qe2 {[%emt 0:41:33]} Nxc3 {[%emt 0:07:29]} 12. bxc3 {[%emt 0:00:08]} Qd5 {[%emt 0:00:08]} 13. a4 {[%emt 0:08:22]} Rg8 {[%emt 0:13:26]} 14. Bf4 {[%emt 0:08:38]} e6 {[%emt 0:10:50]} 15. Rab1 {[%emt 0:05:39][%cal Of3g5]} a6 {[%emt 0:01:38]} 16. Rb6 {[%emt 0:08:20][%cal Og2g3]} (16. Rxb7 $2 Nxd4 17. cxd4 Qxb7 $19) 16... O-O-O {[%emt 0:05:28]} (16... Qe4 $2 17. Qxe4 fxe4 18. Nd2 $16) 17. Rfb1 {[%emt 0:02:12]} Rd7 {[%emt 0:05:10]} (17... Na5 $1 $11 {und Schwarz ist OK.}) 18. Kh1 {[%emt 0:04:22]} (18. g3 $1 $18) 18... Bd6 {[%emt 0:14:57]} 19. Bxd6 {[%emt 0:00:26]} Qxd6 {[%emt 0:00:04]} 20. Qxc4 {[%emt 0:01:27][%cal Ob6a6] Droht Rxa6! und aus.} Rc7 {[%emt 0:00:09]} 21. Qb3 {[%emt 0:02:34]} (21. Qe2 $5) 21... Qd7 {[%emt 0:01:05]} ({Günstiger ist} 21... Qe7 $1 $14) 22. c4 {[%emt 0:02:42]} Rd8 {[%emt 0:02:14]} ({Jedoch nicht} 22... Na5 $2 23. Rxa6 Kd8 24. Rxa5 $18) 23. Qb2 {[%emt 0:01:52][%cal Od4d5] Droht stark d5! Weiß steht aktiver.} (23. d5 {vereinfacht} exd5 24. cxd5 Qxd5 25. Rxb7 Qxb3 26. R7xb3 Rd5 27. Rb6) 23... Qe7 $1 {[%emt 0:02:21]} 24. Ne5 {[%emt 0:01:15]} Nxe5 {[%emt 0:02:58]} 25. dxe5 {[%emt 0:00:01]} Rd3 {[%emt 0:02:14]} (25... Rcd7 $1 $14) 26. c5 {[%emt 0:02:09]} Qxc5 {[%emt 0:01:58]} 27. Rxb7 {[%emt 0:00:08]} Rd1+ {[%emt 0:00:05]} 28. Rxd1 {[%emt 0:00:46]} Rxb7 $14 {[%emt 0:00:05][%mdl 4096] Endspiel. KQR-KQR} 29. Qe2 {[%emt 0:01:13]} a5 {[%emt 0:01:16]} 30. f4 $40 {[%emt 0:01:29][%mdl 128] Weiss hat was vor.} Qc6 {[%emt 0:01:00]} 31. Rd4 {[%emt 0:01:35]} Rb4 {[%emt 0:01:38] Verhindert Rc4} 32. Rd6 {[%emt 0:00:17]} Qc1+ {[%emt 0:01:46]} 33. Rd1 {[%emt 0:00:05]} Qc6 {[%emt 0:00:55] Verhindert Qa6+} (33... Qc4 $11 34. Qd2 Qc7) 34. Qd3 $16 {[%emt 0:00:49]} Qc7 {[%emt 0:00:31][%cal Oc8b8] Gegen Qd8+ gerichtet.} 35. Qg3 {[%emt 0:00:54]} (35. Rd2 $16 {Rc2 ist eine echte Drohung.} Rc4 36. Kh2) 35... Rxa4 $2 {[%emt 0:00:37][%mdl 8192] [#]} (35... Kb7 $11) 36. Qg8+ $1 $18 {[%emt 0:00:25] Weiß steht klar auf Gewinn.} Kb7 {[%emt 0:00:05] [#]} 37. Qe8 $1 {[%emt 0:00:25]} Rc4 {[%emt 0:00:56]} 38. Rd7 {[%emt 0:00:33]} Kb6 {[%emt 0:00:15]} 39. Rxc7 {[%emt 0:01:06]} ({Schwächer ist} 39. Rxf7 Qc8 40. Qe7 Rc7 41. Qd6+ Kb7 $11) 39... Rxc7 {[%emt 0:00:02]} 40. Kh2 {[%emt 0:00:00]} Ra7 {[%emt 0:00:00]} 41. Qa4 {[%emt 0:02:23]} Rc7 {[%emt 0:05:27]} 42. Kg3 {[%emt 0:00:41]} Rc1 {[%emt 0:00:09]} 43. Kh4 {[%emt 0:01:09]} Rb1 {[%emt 0:00:09]} 44. Qe8 {[%emt 0:01:36] Gewichteter Fehlerwert: Weiß=0.21 (präzise) /Schwarz=0.16 (sehr präzise) .  Verlustzug:     	---       	Schwarz=2     Fehler:       	Weiß=2     	Schwarz=3     Ungenau:       	Weiß=3     	---        OK:         	Weiß=8     	Schwarz=12    Bester:       	Weiß=4     	Schwarz=4     Stark:        	Weiß=1     	Schwarz=1} 1-0

[Event "Austrian Bundesliga 2023-24"]
[Site "Austria"]
[Date "2024.03.20"]
[Round "7.10"]
[White "Kvetny, Mark"]
[Black "Svane, Frederik"]
[Result "0-1"]
[ECO "A13"]
[WhiteElo "2407"]
[BlackElo "2617"]
[Annotator "TA"]
[PlyCount "74"]
[EventDate "2023.10.21"]
[EventType "team-tourn"]
[EventCountry "AUT"]
[SourceTitle "playchess.com"]
[Source "ChessBase"]
[SourceQuality "1"]
[TimeControl "40/5400+30:1800+30"]

{[%evp 9,74,7,4,1,12,26,22,25,28,19,15,4,9,0,0,0,16,0,16,0,-9,0,5,0,0,0,0,0,0,-16,-9,-118,-122,-173,-82,-125,-104,-147,-140,-186,-172,-282,-279,-440,-204,-205,-197,-189,-201,-196,-202,-179,-199,-258,-266,-566,-535,-860,-734,-783,-779,-770,-891,-836,-818,-29990,-29991]} 1. c4 {[%emt 0:00:03]} e6 {[%emt 0:00:19]} 2. g3 {[%emt 0:00:28]} d5 {[%emt 0:00:33][%cal Bd7d5,Bd5d4][%mdl 32]} 3. Bg2 {[%emt 0:00:14]} d4 {[%emt 0:01:12]} 4. Nf3 {[%emt 0:00:46]} c5 {[%emt 0:00:31]} 5. O-O {[%emt 0:00:25]} Nc6 {[%emt 0:00:12]} 6. e3 {[%emt 0:00:27]} Nf6 {[%emt 0:00:09]} 7. d3 {[%emt 0:01:59]} h6 {[%emt 0:00:44]} 8. exd4 {[%emt 0:07:50] The position is equal.} cxd4 {[%emt 0:00:09]} 9. Bf4 {[%emt 0:00:21]} Nd7 {[%emt 0:00:34] Prevents Ne5} 10. Re1 {[%emt 0:03:42]} Bc5 {[%emt 0:02:40]} 11. Na3 {[%emt 0:15:50]} O-O {[%emt 0:02:07]} 12. Nc2 {[%emt 0:02:24]} a5 {[%emt 0:02:32]} 13. a3 {[%emt 0:07:01]} Re8 {[%emt 0:08:14]} 14. Ne5 {[%emt 0:01:43]} Ndxe5 {[%emt 0:06:03]} 15. Bxe5 {[%emt 0:00:06]} a4 {[%emt 0:03:42]} 16. Bxc6 {[%emt 0:10:57]} bxc6 {[%emt 0:00:13]} 17. Re4 {[%emt 0:00:08]} Bb7 {[%emt 0:20:44]} 18. Qh5 {[%emt 0:07:21][%cal Oe4g4] aiming for Rg4!} Ra5 {[%emt 0:14:51]} 19. Rf4 {[%emt 0:03:41]} (19. Nxd4 $2 Bxd4 20. Rxd4 Qxd4 $19) 19... Qd7 {[%emt 0:04:24]} 20. Bxg7 {[%emt 0:19:38]} Kxg7 $17 {[%emt 0:00:26]} 21. Rh4 {[%emt 0:00:48]} (21. Rg4+ $17 Kf8 22. Rf4) 21... Kf8 {[%emt 0:09:36]} (21... Rh8 $19 {is more deadly. ...Bb6 would now be deadly.} 22. Qe5+ f6 23. Rg4+ Kf7) 22. Qxh6+ {[%emt 0:01:59]} Ke7 {[%emt 0:00:08]} 23. Qg5+ {[%emt 0:03:22]} Kd6 {[%emt 0:00:16]} 24. Re1 {[%emt 0:05:07]} (24. Qd2 $17 Bb6 25. Rxd4+ Bxd4 26. Qxa5) 24... Kc7 $19 {[%emt 0:11:01][%cal Oc5b4]} 25. Re5 {[%emt 0:04:26] [#]} (25. Qd2 {might work better.} Bb6 26. Rxd4 Bxd4 27. Qxa5+ Bb6 28. Qe5+ Qd6 29. h4) 25... Be7 $1 {[%emt 0:01:40][%cal Bc5e7,Be7d6,Bd6c7][%mdl 32]} 26. Qg7 {[%emt 0:00:11]} (26. Rxd4 $142 Qxd4 27. Nxd4 Bxg5 28. Rxa5) 26... Rxe5 {[%emt 0:00:39]} (26... c5 $142 27. Rh7 Qc6) 27. Qxe5+ {[%emt 0:00:09]} Bd6 {[%emt 0:00:13]} 28. Qa5+ {[%emt 0:00:12]} Kc8 {[%emt 0:00:37]} 29. c5 {[%emt 0:02:01] [#]} Bc7 {[%emt 0:00:06]} 30. Qxa4 {[%emt 0:00:04]} e5 {[%emt 0:00:05]} 31. Nb4 {[%emt 0:00:28]} (31. Qc4 $142) 31... f5 {[%emt 0:07:40]} 32. Rh6 $2 {[%emt 0:00:30]} (32. Qc2) 32... e4 {[%emt 0:00:10]} 33. Rxc6 {[%emt 0:01:56]} Re6 {[%emt 0:01:09]} 34. Rxc7+ {[%emt 0:00:41]} Kxc7 {[%emt 0:00:14]} 35. Qa5+ {[%emt 0:00:10]} Kc8 {[%emt 0:00:13] Threatens to win with ...exd3.} 36. c6 {[%emt 0:00:33]} Bxc6 {[%emt 0:00:08]} 37. Qxf5 {[%emt 0:00:07]} exd3 {[%emt 0:00:21] Weighted Error Value: White=0.67/Black=0.26 (precise) .  Mistake:       	White=7     	Black=2      Inaccurate:     	White=3     	---        OK:         	White=7     	Black=11     Best:        	---       	Black=4      Strong:       	---       	Black=1} 0-1

[Event "Austrian Bundesliga 2023-24"]
[Site "Austria"]
[Date "2024.03.20"]
[Round "7.11"]
[White "Wagner, Dennis"]
[Black "Richter, Nils"]
[Result "1-0"]
[ECO "E12"]
[WhiteElo "2620"]
[BlackElo "2400"]
[Annotator "TA"]
[PlyCount "69"]
[EventDate "2023.10.21"]
[EventType "team-tourn"]
[EventCountry "AUT"]
[SourceTitle "playchess.com"]
[Source "ChessBase"]
[SourceQuality "1"]
[TimeControl "40/5400+30:1800+30"]

{[%evp 10,69,4,0,11,10,12,7,6,10,20,10,21,17,15,10,20,17,15,10,20,20,22,16,25,13,13,4,16,3,19,9,14,16,16,5,16,16,31,8,52,71,141,110,130,54,50,54,56,58,164,164,216,22,15,14,0,0,0,12,29994,29995]} 1. d4 {[%emt 0:00:03]} Nf6 {[%emt 0:00:07]} 2. c4 {[%emt 0:00:07]} e6 {[%emt 0:00:06]} 3. Nf3 {[%emt 0:00:11]} b6 {[%emt 0:00:08]} 4. a3 {[%emt 0:00:15]} Bb7 {[%emt 0:00:20]} 5. Nc3 {[%emt 0:00:08]} d5 {[%emt 0:00:25]} 6. Bf4 {[%emt 0:00:42]} Bd6 {[%emt 0:07:09]} 7. Bxd6 {[%emt 0:00:29]} cxd6 {[%emt 0:01:06]} 8. cxd5 {[%emt 0:01:50]} Nxd5 {[%emt 0:00:29] The position is equal.} 9. Nxd5 {[%emt 0:00:16]} Bxd5 {[%emt 0:00:11]} 10. e3 {[%emt 0:00:28]} O-O {[%emt 0:19:28]} 11. Bd3 {[%emt 0:01:14]} Nd7 {[%emt 0:00:02]} 12. O-O {[%emt 0:06:12]} Nf6 {[%emt 0:01:07]} 13. Qe2 {[%emt 0:05:00]} Rc8 {[%emt 0:10:51]} 14. e4 {[%emt 0:01:25]} Bb7 {[%emt 0:01:17]} 15. Rad1 {[%emt 0:04:57]} Rc7 {[%emt 0:02:08]} 16. Rfe1 {[%emt 0:01:59]} Qe7 {[%emt 0:03:25]} 17. h3 {[%emt 0:01:57]} Rfc8 {[%emt 0:00:45]} 18. Qe3 {[%emt 0:01:01]} g6 {[%emt 0:02:35]} 19. Nd2 {[%emt 0:13:09][%cal Bf3d2,Bd2b1,Bb1c3][%mdl 32]} Kg7 {[%emt 0:01:06]} 20. Nb1 {[%emt 0:02:31]} b5 {[%emt 0:05:25]} 21. Nc3 {[%emt 0:06:30]} (21. Bxb5 Nxe4 (21... Bxe4 22. Nc3 $15) 22. Bd3 Nf6 $16) 21... a6 {[%emt 0:00:01]} 22. Bb1 {[%emt 0:10:09]} Nd7 {[%emt 0:19:15]} 23. Ba2 {[%emt 0:00:42]} Qf6 {[%emt 0:06:16]} 24. Rd2 {[%emt 0:09:22]} h5 {[%emt 0:00:23]} 25. f4 {[%emt 0:11:10]} Nb6 {[%emt 0:10:42]} (25... Qe7 $142) 26. d5 $16 {[%emt 0:06:28]} Nc4 {[%emt 0:00:07]} 27. Bxc4 {[%emt 0:00:05]} (27. e5 $1 $16 {[%cal Re5f6]} dxe5 28. fxe5) 27... Rxc4 $14 {[%emt 0:00:05]} 28. Qb6 {[%emt 0:09:48][%csl LRb7,LRd6]} R8c7 {[%emt 0:01:36]} (28... Qxf4 $2 {loses.} 29. Rf2 Qg3 30. Qxb7 $18) 29. dxe6 {[%emt 0:02:30]} R4c6 {[%emt 0:01:30]} (29... Qxe6 $14 30. Rxd6 Qe7) 30. Qe3 $18 {[%emt 0:00:40] exf7 is the strong threat.} fxe6 {[%emt 0:00:56] [#]} (30... Qxe6 {is a better defense.} 31. Nd5 Rc8) 31. Rxd6 $2 {[%emt 0:02:32]} Rxd6 $11 {[%emt 0:00:49]} 32. e5 {[%emt 0:00:01]} Qd8 {[%emt 0:00:41]} 33. exd6 {[%emt 0:00:04]} Qxd6 {[%emt 0:00:02]} 34. Rd1 {[%emt 0:00:52]} Rxc3 $4 {[%emt 0:00:58][%mdl 8192]} 35. Qxc3+ {[%emt 0:00:06] Weighted Error Value: White=0.18 (very precise) /Black=0.42.  Loses game:     	---       	Black=1      Missed win:     	White=1     	---        Mistake:       	White=1     	Black=3      Inaccurate:     	---       	Black=1      OK:         	White=13    	Black=7      Best:        	White=3     	---} (35. Rxd6 Rxe3 36. Rd7+ Kf6 37. Rxb7 g5 38. fxg5+ Kxg5 $17) 1-0

[Event "Austrian Bundesliga 2023-24"]
[Site "Austria"]
[Date "2024.03.20"]
[Round "7.12"]
[White "Neyman, Igor"]
[Black "Buhmann, Rainer"]
[Result "0-1"]
[ECO "E11"]
[WhiteElo "2302"]
[BlackElo "2568"]
[Annotator "TA"]
[PlyCount "104"]
[EventDate "2023.10.21"]
[EventType "team-tourn"]
[EventCountry "AUT"]
[SourceTitle "playchess.com"]
[Source "ChessBase"]
[SourceQuality "1"]
[TimeControl "40/5400+30:1800+30"]

{[%evp 9,104,17,39,8,9,0,23,0,9,-37,-14,-52,-51,-62,-22,-45,-20,-34,-27,-32,-60,-59,-10,-21,-27,-81,-115,-127,-83,-75,-81,-179,-187,-193,-204,-186,-197,-212,-180,-210,-221,-264,-258,-262,-270,-291,-284,-298,-297,-314,-304,-312,-320,-324,-319,-351,-317,-316,-295,-313,-311,-389,-296,-535,0,-408,-311,-336,-310,-345,-341,-366,-346,-341,-349,-370,-374,-446,-455,-444,-455,-458,-443,-448,-456,-468,-488,-581,-396,-489,-477,-669,-436,-505,-505,-517,-548]} 1. d4 {[%emt 0:00:05]} Nf6 {[%emt 0:00:07]} 2. c4 {[%emt 0:00:15]} e6 {[%emt 0:00:06]} 3. Nf3 {[%emt 0:00:18]} Bb4+ {[%emt 0:00:15]} 4. Bd2 {[%emt 0:00:56]} Be7 {[%emt 0:00:57]} 5. Nc3 {[%emt 0:01:15]} O-O {[%emt 0:00:36]} 6. Bf4 {[%emt 0:06:07]} Nh5 {[%emt 0:08:28]} 7. g3 {[%emt 0:09:21]} d5 {[%emt 0:06:32]} 8. cxd5 {[%emt 0:06:48] White has an edge.} exd5 {[%emt 0:02:16]} 9. Bg2 {[%emt 0:02:49]} (9. e3 $11) 9... c6 {[%emt 0:03:16]} 10. Ne5 {[%emt 0:06:52]} Nxf4 {[%emt 0:06:16]} 11. gxf4 {[%emt 0:00:17]} Na6 {[%emt 0:05:45]} 12. e3 {[%emt 0:04:32]} Bd6 {[%emt 0:03:03]} 13. Bf1 {[%emt 0:10:39]} Bxe5 {[%emt 0:09:04]} 14. fxe5 {[%emt 0:05:08]} f6 {[%emt 0:04:49] Hoping for ...fxe5.} 15. Qh5 {[%emt 0:08:07]} Nb4 {[%emt 0:07:28] Wards off Bd3} (15... fxe5 $1 $15 16. Qxe5 (16. Bxa6 Rf5 $17) 16... Rf7) 16. O-O-O $11 {[%emt 0:06:00]} fxe5 {[%emt 0:01:08]} 17. a3 {[%emt 0:03:02]} (17. Qxe5 $11 Rxf2 18. a3) 17... Rf5 $17 {[%emt 0:01:32]} 18. Qe2 {[%emt 0:01:34]} Na6 {[%emt 0:02:26]} 19. Bh3 {[%emt 0:06:15]} Rg5 {[%emt 0:08:22]} 20. f4 {[%emt 0:03:12]} (20. Bxc8 $17 {was the only defense.} Rxc8 21. h4) 20... exf4 $19 {[%emt 0:01:14]} 21. exf4 {[%emt 0:00:16]} Rg6 {[%emt 0:01:06]} 22. Bxc8 {[%emt 0:06:17]} Rxc8 {[%emt 0:01:03]} 23. h4 {[%emt 0:03:02]} Qd6 {[%emt 0:03:17]} 24. Rdf1 {[%emt 0:01:29]} Rf8 {[%emt 0:01:55]} 25. f5 {[%emt 0:00:23]} Rgf6 {[%emt 0:02:17]} 26. Qg4 {[%emt 0:03:32]} Qd7 {[%emt 0:01:36][%cal Rf6f5]} 27. h5 {[%emt 0:01:54]} Rxf5 {[%emt 0:02:00]} 28. Re1 {[%emt 0:00:29]} h6 {[%emt 0:04:54]} 29. Kb1 {[%emt 0:00:41]} Nc7 {[%emt 0:01:12]} 30. Ka2 {[%emt 0:00:43]} Qf7 {[%emt 0:01:51]} 31. Ne2 {[%emt 0:01:22]} Nb5 {[%emt 0:02:20]} 32. Rh2 {[%emt 0:01:20]} Rg5 {[%emt 0:01:21]} 33. Qh3 {[%emt 0:00:14]} Kh8 {[%emt 0:03:02]} 34. Rd1 {[%emt 0:00:31]} Qf5 {[%emt 0:01:08]} 35. Qe3 {[%emt 0:00:24]} Qe4 {[%emt 0:00:41]} 36. Qh3 {[%emt 0:00:34] [#]} (36. Qxe4 dxe4 37. a4) 36... Qf5 {[%emt 0:01:00]} 37. Qe3 $1 {[%emt 0:00:09]} Nd6 {[%emt 0:01:15]} 38. Qe7 {[%emt 0:00:44]} Qf6 {[%emt 0:01:05]} (38... Rxh5 $2 {is the wrong capture.} 39. Rxh5 (39. Qxd6 Rxh2 40. Qxh2 Qf2 $11) 39... Qf6 40. Re5 $18) 39. Qe3 {[%emt 0:00:27]} Ne4 {[%emt 0:00:38]} 40. Nc1 {[%emt 0:00:00]} Rg3 {[%emt 0:00:00]} 41. Qe1 {[%emt 0:01:07]} Qd6 {[%emt 0:08:01][%cal Og3a3] [#] aiming for ...Rxa3+!} 42. Qa5 {[%emt 0:03:44]} a6 {[%emt 0:03:36]} 43. Rc2 {[%emt 0:02:10]} Rff3 {[%emt 0:01:12] Inhibits Nd3.} 44. Rh1 {[%emt 0:01:41]} Kh7 {[%emt 0:01:26]} 45. Qb6 {[%emt 0:02:37]} Qd7 {[%emt 0:02:10]} 46. Rch2 {[%emt 0:01:04]} Qf7 {[%emt 0:02:03]} 47. Ne2 {[%emt 0:01:11]} Rg5 {[%emt 0:00:27]} 48. Nc1 {[%emt 0:01:42]} Qe7 {[%emt 0:02:26]} 49. Nb3 {[%emt 0:02:59]} Rgg3 {[%emt 0:05:24] Black is clearly winning.} 50. Nc1 {[%emt 0:01:15]} (50. Nc5 $142 Nf2 51. Rc1) 50... Re3 {[%emt 0:02:11]} 51. Rf1 {[%emt 0:01:52]} Rh3 {[%emt 0:00:52]} 52. Rg2 {[%emt 0:01:27]} Rxh5 {[%emt 0:00:31] Weighted Error Value: White=0.36/Black=0.33.  Mistake:       	White=5     	Black=1      Inaccurate:     	White=1     	Black=4      OK:         	White=7     	Black=24     Best:        	---       	Black=2      Strong:       	White=1     	---} 0-1